[Event "European Rapid Championship 2021"]
[Site "Katowice"]
[Date "2021.12.19"]
[Round "8.16"]
[White "Derejczyk, Mateusz"]
[Black "Niedbala, Bartlomiej"]
[Result "0-1"]
[ECO "B14"]
[WhiteElo "1520"]
[BlackElo "2131"]
[Annotator "NA"]
[PlyCount "90"]
[EventDate "2021.12.18"]
[EventType "swiss"]
[EventCountry "POL"]
[SourceTitle "playchess.com"]
[Source "ChessBase"]
[SourceQuality "1"]
[TimeControl "900+10"]

1. e4 {[%emt 0:00:01]} c6 {[%emt 0:00:31]} 2. d4 {[%emt 0:00:02]} d5 {[%emt 0:
00:01]} 3. exd5 {[%emt 0:00:02]} cxd5 {[%emt 0:00:01]} 4. c4 {[%emt 0:00:02]}
Nf6 {[%emt 0:00:09]} 5. Nc3 {[%emt 0:00:04]} g6 {[%emt 0:00:01]} 6. Nf3 {
[%emt 0:00:02]} Bg7 {[%emt 0:00:01]} 7. cxd5 {[%emt 0:00:02]} Nxd5 {[%emt 0:00:
05]} 8. Bc4 {[%emt 0:00:04]} Nb6 {[%emt 0:00:08]} 9. Bb3 {[%emt 0:00:05]} O-O {
[%emt 0:00:02]} 10. Be3 {[%emt 0:00:03]} Nc6 {[%emt 0:00:03]} 11. O-O {[%emt 0:
00:07]} Na5 {[%emt 0:00:53]} 12. h3 {[%emt 0:00:28]} Nxb3 {[%emt 0:00:09]} 13.
Qxb3 {[%emt 0:00:03]} Be6 {[%emt 0:00:03]} 14. Qb4 {[%emt 0:00:56]} Rc8 {
[%emt 0:02:00]} 15. Rfd1 {[%emt 0:00:54]} Nd5 {[%emt 0:00:08]} 16. Qxb7 {
[%emt 0:00:51]} Rc7 {[%emt 0:01:05]} 17. Qa6 {[%emt 0:00:28]} Nxe3 {[%emt 0:00:
15]} 18. fxe3 {[%emt 0:00:03]} Bc4 {[%emt 0:00:02]} 19. Qa5 {[%emt 0:00:54]}
Bh6 {[%emt 0:00:02]} 20. Kf2 {[%emt 0:00:27]} Qb8 {[%emt 0:00:56]} 21. Rd2 {
[%emt 0:00:45]} Rfc8 {[%emt 0:00:15]} 22. Ne5 {[%emt 0:00:32]} Be6 {[%emt 0:00:
01]} 23. Ng4 {[%emt 0:00:28]} Bg7 {[%emt 0:01:51]} 24. Rad1 {[%emt 0:02:57]}
Rb7 {[%emt 0:00:39]} 25. Qa3 {[%emt 0:00:30]} h5 {[%emt 0:00:40]} 26. Ne5 {
[%emt 0:00:37]} Bxe5 {[%emt 0:00:02]} 27. dxe5 {[%emt 0:00:01]} Qxe5 {[%emt 0:
00:02]} 28. Rd8+ {[%emt 0:00:40]} Rxd8 {[%emt 0:00:01]} 29. Rxd8+ {[%emt 0:00:
01]} Kh7 {[%emt 0:00:02]} 30. Nd1 {[%emt 0:00:46]} Rc7 {[%emt 0:01:07]} 31. Rd2
{[%emt 0:01:00]} h4 {[%emt 0:00:01]} 32. Qb4 {[%emt 0:01:08]} Qg3+ {[%emt 0:00:
15]} 33. Kf1 {[%emt 0:00:01]} Bc4+ {[%emt 0:00:57]} 34. Kg1 {[%emt 0:00:21]}
Qe1+ {[%emt 0:00:02]} 35. Kh2 {[%emt 0:00:03]} Rd7 {[%emt 0:00:01]} 36. Qxc4 {
[%emt 0:00:49]} Qg3+ {[%emt 0:01:00]} 37. Kg1 {[%emt 0:00:26]} Rxd2 {[%emt 0:
00:25]} 38. Qxf7+ {[%emt 0:00:02]} Kh6 {[%emt 0:00:01]} 39. Qf1 {[%emt 0:00:43]
} Kg7 {[%emt 0:00:35]} 40. a4 {[%emt 0:00:25]} a5 {[%emt 0:00:16]} 41. Kh1 {
[%emt 0:00:03]} Rc2 {[%emt 0:01:05]} 42. Kg1 {[%emt 0:00:24]} Rc1 {[%emt 0:00:
31]} 43. Qd3 {[%emt 0:00:32]} Qe1+ {[%emt 0:00:13]} 44. Kh2 {[%emt 0:00:06]}
Rxd1 {[%emt 0:00:03]} 45. Qc3+ {[%emt 0:00:14]} Qxc3 {[%emt 0:00:02]} 0-1

[Event "European Rapid Championship 2021"]
[Site "Katowice"]
[Date "2021.12.19"]
[Round "8.17"]
[White "Reimanis, Ritvars"]
[Black "Jonsson, Gauti Pall"]
[Result "1/2-1/2"]
[ECO "A47"]
[WhiteElo "2397"]
[BlackElo "2014"]
[Annotator "NA"]
[PlyCount "94"]
[EventDate "2021.12.18"]
[EventType "swiss"]
[EventCountry "POL"]
[SourceTitle "playchess.com"]
[Source "ChessBase"]
[SourceQuality "1"]
[TimeControl "900+10"]

1. Nf3 {[%emt 0:00:03]} Nf6 {[%emt 0:00:04]} 2. d4 {[%emt 0:00:01]} b6 {
[%emt 0:00:08]} 3. g3 {[%emt 0:00:04]} Bb7 {[%emt 0:00:03]} 4. Bg2 {[%emt 0:00:
02]} g6 {[%emt 0:00:07]} 5. O-O {[%emt 0:00:14]} Bg7 {[%emt 0:00:03]} 6. Re1 {
[%emt 0:00:12]} O-O {[%emt 0:00:20]} 7. c4 {[%emt 0:00:41]} d6 {[%emt 0:00:58]}
8. d5 {[%emt 0:01:31]} c6 {[%emt 0:00:43]} 9. e4 {[%emt 0:00:07]} cxd5 {
[%emt 0:00:02]} 10. exd5 {[%emt 0:00:26]} b5 {[%emt 0:00:37]} 11. Qb3 {[%emt 0:
01:31]} Qb6 {[%emt 0:02:24]} 12. Rxe7 {[%emt 0:02:43]} Nbd7 {[%emt 0:00:35]}
13. Na3 {[%emt 0:03:42]} bxc4 {[%emt 0:00:53]} 14. Nxc4 {[%emt 0:01:53]} Qd8 {
[%emt 0:00:59]} 15. Re1 {[%emt 0:00:02]} Bxd5 {[%emt 0:00:01]} 16. Qd3 {
[%emt 0:01:17]} Nc5 {[%emt 0:00:04]} 17. Qf1 {[%emt 0:00:24]} Rc8 {[%emt 0:00:
29]} 18. Bf4 {[%emt 0:00:58]} Ne6 {[%emt 0:00:41]} 19. Rac1 {[%emt 0:01:21]}
Nxf4 {[%emt 0:00:05]} 20. gxf4 {[%emt 0:00:01]} Nh5 {[%emt 0:00:25]} 21. Ne3 {
[%emt 0:00:01]} Bxf3 {[%emt 0:00:19]} 22. Rxc8 {[%emt 0:00:19]} Qxc8 {[%emt 0:
00:02]} 23. Bxf3 {[%emt 0:00:02]} Nxf4 {[%emt 0:00:01]} 24. Nd5 {[%emt 0:00:23]
} Nxd5 {[%emt 0:00:12]} 25. Bxd5 {[%emt 0:00:01]} Qf5 {[%emt 0:00:04]} 26. Qc4
{[%emt 0:00:19]} Be5 {[%emt 0:00:22]} 27. Bg2 {[%emt 0:00:24]} Bxb2 {[%emt 0:
00:13]} 28. Re7 {[%emt 0:00:17]} Be5 {[%emt 0:00:28]} 29. Rxa7 {[%emt 0:00:20]}
Rb8 {[%emt 0:00:21]} 30. Ra8 {[%emt 0:00:17]} Qb1+ {[%emt 0:00:06]} 31. Qf1 {
[%emt 0:00:01]} Qxf1+ {[%emt 0:00:39]} 32. Kxf1 {[%emt 0:00:02]} Rxa8 {[%emt 0:
00:13]} 33. Bxa8 {[%emt 0:00:01]} Kf8 {[%emt 0:00:09]} 34. h3 {[%emt 0:00:05]}
Ke7 {[%emt 0:00:02]} 35. Bd5 {[%emt 0:00:04]} f6 {[%emt 0:00:12]} 36. Ke2 {
[%emt 0:00:02]} Kd7 {[%emt 0:00:03]} 37. Ke3 {[%emt 0:00:08]} Kc7 {[%emt 0:00:
04]} 38. Ke4 {[%emt 0:00:06]} Kb6 {[%emt 0:00:11]} 39. f4 {[%emt 0:00:01]} f5+
{[%emt 0:00:16]} 40. Ke3 {[%emt 0:00:02]} Kc5 {[%emt 0:00:12]} 41. Bg8 {
[%emt 0:00:08]} Bd4+ {[%emt 0:00:47]} 42. Kf3 {[%emt 0:00:13]} h6 {[%emt 0:00:
01]} 43. Bh7 {[%emt 0:00:05]} g5 {[%emt 0:00:02]} 44. Bxf5 {[%emt 0:00:11]}
gxf4 {[%emt 0:00:11]} 45. Kxf4 {[%emt 0:00:01]} Bb2 {[%emt 0:00:08]} 46. Ke3 {
[%emt 0:00:06]} Kc4 {[%emt 0:00:29]} 47. Kd2 {[%emt 0:00:10]} Ba3 {[%emt 0:00:
21]} 1/2-1/2

[Event "European Rapid Championship 2021"]
[Site "Katowice"]
[Date "2021.12.19"]
[Round "8.17"]
[White "Lach, Aleksandra"]
[Black "Dragnev, Valentin"]
[Result "0-1"]
[ECO "B01"]
[WhiteElo "2132"]
[BlackElo "2409"]
[Annotator "NA"]
[PlyCount "114"]
[EventDate "2021.12.18"]
[EventType "swiss"]
[EventCountry "POL"]
[SourceTitle "playchess.com"]
[Source "ChessBase"]
[SourceQuality "1"]
[TimeControl "900+10"]

1. e4 {[%emt 0:00:03]} d5 {[%emt 0:00:02]} 2. exd5 {[%emt 0:00:25]} Qxd5 {
[%emt 0:00:02]} 3. Nf3 {[%emt 0:00:02]} Bg4 {[%emt 0:00:05]} 4. Be2 {[%emt 0:
00:02]} Nc6 {[%emt 0:00:03]} 5. d4 {[%emt 0:00:49]} O-O-O {[%emt 0:00:24]} 6.
Be3 {[%emt 0:00:02]} e5 {[%emt 0:03:09]} 7. c4 {[%emt 0:00:02]} Qa5+ {[%emt 0:
04:48]} 8. Bd2 {[%emt 0:00:05]} Bb4 {[%emt 0:00:04]} 9. d5 {[%emt 0:01:48]}
Bxf3 {[%emt 0:01:19]} 10. Bxf3 {[%emt 0:00:50]} Nd4 {[%emt 0:00:03]} 11. Nc3 {
[%emt 0:00:41]} Qa6 {[%emt 0:00:54]} 12. Be2 {[%emt 0:01:50]} Nf6 {[%emt 0:00:
26]} 13. a3 {[%emt 0:02:07]} Bxc3 {[%emt 0:00:32]} 14. Bxc3 {[%emt 0:00:29]}
Nxe2 {[%emt 0:00:18]} 15. Qxe2 {[%emt 0:00:03]} Rhe8 {[%emt 0:00:03]} 16. O-O-O
{[%emt 0:02:29]} Kb8 {[%emt 0:00:13]} 17. Rhe1 {[%emt 0:00:07]} Nd7 {[%emt 0:
00:25]} 18. Bb4 {[%emt 0:01:39]} Qh6+ {[%emt 0:01:27]} 19. Qe3 {[%emt 0:00:02]}
Qh4 {[%emt 0:00:49]} 20. b3 {[%emt 0:00:21]} f5 {[%emt 0:00:46]} 21. g3 {
[%emt 0:02:21]} Qh5 {[%emt 0:00:03]} 22. Qe2 {[%emt 0:00:33]} Qh6+ {[%emt 0:00:
13]} 23. Kb2 {[%emt 0:00:27]} e4 {[%emt 0:00:15]} 24. f4 {[%emt 0:00:27]} g5 {
[%emt 0:00:27]} 25. Qf2 {[%emt 0:00:30]} gxf4 {[%emt 0:00:20]} 26. gxf4 {
[%emt 0:00:12]} Nf6 {[%emt 0:00:01]} 27. d6 {[%emt 0:00:17]} c6 {[%emt 0:00:50]
} 28. Ba5 {[%emt 0:00:09]} Rd7 {[%emt 0:00:08]} 29. Bc7+ {[%emt 0:00:12]} Ka8 {
[%emt 0:00:02]} 30. Re2 {[%emt 0:00:10]} Ng4 {[%emt 0:00:24]} 31. Qg3 {[%emt 0:
00:12]} Qf6+ {[%emt 0:00:15]} 32. Ka2 {[%emt 0:00:01]} Qe6 {[%emt 0:00:09]} 33.
h3 {[%emt 0:00:18]} Nf6 {[%emt 0:00:02]} 34. Qe3 {[%emt 0:00:22]} Rc8 {[%emt 0:
00:11]} 35. Rg1 {[%emt 0:00:07]} Ne8 {[%emt 0:00:05]} 36. Reg2 {[%emt 0:00:13]}
Nxd6 {[%emt 0:00:13]} 37. Bxd6 {[%emt 0:00:16]} Rxd6 {[%emt 0:00:08]} 38. Qc3 {
[%emt 0:00:16]} Rd3 {[%emt 0:00:14]} 39. Qb4 {[%emt 0:00:08]} c5 {[%emt 0:00:
31]} 40. Qe1 {[%emt 0:00:17]} Rcd8 {[%emt 0:00:13]} 41. Re2 {[%emt 0:00:10]} a6
{[%emt 0:00:21]} 42. Rg3 {[%emt 0:00:14]} Qd6 {[%emt 0:00:21]} 43. Rge3 {
[%emt 0:00:07]} Qxf4 {[%emt 0:00:07]} 44. Rxd3 {[%emt 0:00:08]} Rxd3 {[%emt 0:
00:02]} 45. Qa5 {[%emt 0:00:03]} Qf1 {[%emt 0:00:30]} 46. Rc2 {[%emt 0:00:21]}
Qg1 {[%emt 0:00:14]} 47. Qc7 {[%emt 0:00:17]} Ka7 {[%emt 0:00:20]} 48. a4 {
[%emt 0:00:02]} Qd4 {[%emt 0:00:11]} 49. a5 {[%emt 0:00:18]} Qd6 {[%emt 0:00:
06]} 50. Qxh7 {[%emt 0:00:11]} Rd2 {[%emt 0:00:22]} 51. Rxd2 {[%emt 0:00:09]}
Qxd2+ 52. Kb1 Qd3+ {[%emt 0:00:03]} 53. Kb2 {[%emt 0:00:05]} Qd2+ {[%emt 0:00:
02]} 54. Kb1 {[%emt 0:00:02]} Qd3+ {[%emt 0:00:21]} 55. Kb2 {[%emt 0:00:00]} e3
{[%emt 0:00:07]} 56. Qc7 {[%emt 0:00:43]} Qd4+ {[%emt 0:00:02]} 57. Ka2 {
[%emt 0:00:07]} e2 {[%emt 0:00:32]} 0-1

[Event "European Rapid Championship 2021"]
[Site "Katowice"]
[Date "2021.12.19"]
[Round "8.18"]
[White "Teclaf, Pawel"]
[Black "Mis, Mieszko"]
[Result "1/2-1/2"]
[ECO "A01"]
[WhiteElo "2345"]
[BlackElo "2237"]
[Annotator "NA"]
[PlyCount "39"]
[EventDate "2021.12.18"]
[EventType "swiss"]
[EventCountry "POL"]
[SourceTitle "playchess.com"]
[Source "ChessBase"]
[SourceQuality "1"]
[TimeControl "900+10"]

1. b3 {[%emt 0:00:02]} Nf6 {[%emt 0:00:31]} 2. Bb2 {[%emt 0:00:05]} e6 {
[%emt 0:00:01]} 3. Nf3 {[%emt 0:00:19]} Be7 {[%emt 0:00:29]} 4. g3 {[%emt 0:00:
06]} b6 {[%emt 0:00:52]} 5. Bg2 {[%emt 0:00:06]} Bb7 {[%emt 0:00:02]} 6. O-O {
[%emt 0:00:02]} O-O {[%emt 0:00:02]} 7. c4 {[%emt 0:00:04]} d5 {[%emt 0:00:55]}
8. cxd5 {[%emt 0:01:31]} Nxd5 {[%emt 0:00:29]} 9. Nc3 {[%emt 0:00:17]} Nxc3 {
[%emt 0:00:41]} 10. Bxc3 {[%emt 0:00:05]} c5 {[%emt 0:00:32]} 11. Rc1 {[%emt 0:
00:53]} Nc6 {[%emt 0:02:59]} 12. Qc2 {[%emt 0:03:27]} Bf6 {[%emt 0:01:35]} 13.
Rfd1 {[%emt 0:01:05]} Bxc3 {[%emt 0:00:29]} 14. Qxc3 {[%emt 0:01:18]} Qe7 {
[%emt 0:00:12]} 15. d4 {[%emt 0:00:58]} cxd4 {[%emt 0:01:56]} 16. Nxd4 {
[%emt 0:00:02]} Nxd4 {[%emt 0:00:01]} 17. Qxd4 {[%emt 0:00:38]} Bxg2 {[%emt 0:
01:34]} 18. Kxg2 {[%emt 0:00:02]} Rfd8 {[%emt 0:00:23]} 19. Qe4 {[%emt 0:00:11]
} Rac8 {[%emt 0:00:34]} 20. b4 {[%emt 0:03:41]} 1/2-1/2

[Event "European Rapid Championship 2021"]
[Site "Katowice"]
[Date "2021.12.19"]
[Round "8.18"]
[White "Malek, Jan"]
[Black "Nasuta, Grzegorz"]
[Result "0-1"]
[ECO "B51"]
[WhiteElo "2029"]
[BlackElo "2345"]
[Annotator "NA"]
[PlyCount "94"]
[EventDate "2021.12.18"]
[EventType "swiss"]
[EventCountry "POL"]
[SourceTitle "playchess.com"]
[Source "ChessBase"]
[SourceQuality "1"]
[TimeControl "900+10"]

1. e4 {[%emt 0:00:01]} c5 {[%emt 0:00:01]} 2. Nf3 {[%emt 0:00:02]} d6 {[%emt 0:
00:02]} 3. Bb5+ {[%emt 0:00:03]} Nd7 {[%emt 0:00:02]} 4. Ba4 {[%emt 0:00:01]}
Ngf6 {[%emt 0:00:06]} 5. O-O {[%emt 0:00:03]} e6 {[%emt 0:00:20]} 6. Re1 {
[%emt 0:00:02]} Be7 {[%emt 0:00:01]} 7. c3 {[%emt 0:00:02]} O-O {[%emt 0:00:11]
} 8. d4 {[%emt 0:00:02]} a6 {[%emt 0:01:59]} 9. Bc2 {[%emt 0:00:02]} e5 {
[%emt 0:00:19]} 10. Nbd2 {[%emt 0:01:27]} b5 {[%emt 0:00:05]} 11. a4 {[%emt 0:
00:09]} Bb7 {[%emt 0:00:02]} 12. dxe5 {[%emt 0:00:16]} dxe5 {[%emt 0:00:19]}
13. Qe2 {[%emt 0:00:03]} Qb6 {[%emt 0:01:28]} 14. Nf1 {[%emt 0:00:47]} c4 {
[%emt 0:00:10]} 15. Ng3 {[%emt 0:00:07]} g6 {[%emt 0:00:33]} 16. Bg5 {[%emt 0:
00:36]} Rfe8 {[%emt 0:00:21]} 17. h3 {[%emt 0:01:19]} Bf8 {[%emt 0:00:13]} 18.
Red1 {[%emt 0:01:38]} Nc5 {[%emt 0:00:35]} 19. Qe3 {[%emt 0:03:39]} Qc6 {
[%emt 0:00:05]} 20. axb5 {[%emt 0:00:12]} axb5 {[%emt 0:00:02]} 21. Rxa8 {
[%emt 0:00:34]} Bxa8 {[%emt 0:00:01]} 22. Re1 {[%emt 0:00:29]} Nfd7 {[%emt 0:
03:43]} 23. Bh6 {[%emt 0:01:05]} Be7 {[%emt 0:00:02]} 24. Rd1 {[%emt 0:00:14]}
f6 {[%emt 0:04:24]} 25. h4 {[%emt 0:01:34]} Bb7 {[%emt 0:00:02]} 26. h5 {
[%emt 0:00:11]} Kf7 {[%emt 0:00:20]} 27. Nh4 {[%emt 0:03:23]} Rg8 {[%emt 0:02:
02]} 28. Qf3 {[%emt 0:00:45]} Nb6 {[%emt 0:00:51]} 29. Be3 {[%emt 0:00:34]}
Nba4 {[%emt 0:00:55]} 30. Bc1 {[%emt 0:00:23]} Qe6 {[%emt 0:00:10]} 31. Qe3 {
[%emt 0:00:19]} Qg4 {[%emt 0:00:02]} 32. Nf3 {[%emt 0:00:01]} gxh5 {[%emt 0:00:
22]} 33. Kf1 {[%emt 0:00:19]} Bc8 {[%emt 0:00:17]} 34. Ke2 {[%emt 0:00:11]} h4
35. Nf5 {[%emt 0:00:03]} Bxf5 {[%emt 0:00:14]} 36. exf5 {[%emt 0:00:02]} e4 {
[%emt 0:00:03]} 37. Rd4 {[%emt 0:00:30]} exf3+ {[%emt 0:00:15]} 38. gxf3 {
[%emt 0:00:01]} Qg5 {[%emt 0:00:05]} 39. Rf4 {[%emt 0:00:18]} Bd6 {[%emt 0:00:
03]} 40. Qd4 {[%emt 0:00:01]} Bxf4 {[%emt 0:00:13]} 41. Bxf4 {[%emt 0:00:04]}
Re8+ {[%emt 0:00:03]} 42. Kf1 {[%emt 0:00:02]} Qh5 {[%emt 0:00:26]} 43. Qd5+ {
[%emt 0:00:24]} Kg7 {[%emt 0:00:01]} 44. Bd6 {[%emt 0:00:15]} h3 {[%emt 0:00:
06]} 45. Bxc5 {[%emt 0:00:16]} Nxc5 {[%emt 0:00:02]} 46. Qxc5 h2 {[%emt 0:00:
04]} 47. Qc7+ {[%emt 0:00:02]} Kh8 {[%emt 0:00:06]} 0-1

[Event "European Rapid Championship 2021"]
[Site "Katowice"]
[Date "2021.12.19"]
[Round "8.19"]
[White "Spalir, Jernej"]
[Black "Kanicki, Krzysztof"]
[Result "1/2-1/2"]
[ECO "D45"]
[WhiteElo "2340"]
[BlackElo "2004"]
[Annotator "NA"]
[PlyCount "108"]
[EventDate "2021.12.18"]
[EventType "swiss"]
[EventCountry "POL"]
[SourceTitle "playchess.com"]
[Source "ChessBase"]
[SourceQuality "1"]
[TimeControl "900+10"]

1. d4 {[%emt 0:00:04]} d5 {[%emt 0:00:03]} 2. c4 {[%emt 0:00:02]} c6 {[%emt 0:
00:01]} 3. Nf3 {[%emt 0:00:02]} Nf6 {[%emt 0:00:01]} 4. Nc3 {[%emt 0:00:02]} e6
{[%emt 0:00:08]} 5. e3 {[%emt 0:00:02]} Nbd7 {[%emt 0:00:02]} 6. Qc2 {[%emt 0:
00:02]} Bd6 {[%emt 0:00:05]} 7. g4 {[%emt 0:00:06]} h6 {[%emt 0:00:48]} 8. g5 {
[%emt 0:00:40]} hxg5 {[%emt 0:00:14]} 9. Nxg5 {[%emt 0:00:02]} a6 {[%emt 0:01:
44]} 10. Bd2 {[%emt 0:00:52]} b5 {[%emt 0:00:39]} 11. c5 {[%emt 0:00:15]} Bc7 {
[%emt 0:00:11]} 12. f4 {[%emt 0:00:03]} a5 {[%emt 0:00:40]} 13. Bd3 {[%emt 0:
00:03]} Qe7 {[%emt 0:00:10]} 14. a3 {[%emt 0:00:38]} Nf8 {[%emt 0:02:37]} 15.
O-O-O {[%emt 0:00:10]} N6d7 {[%emt 0:02:09]} 16. Rdg1 {[%emt 0:00:49]} g6 {
[%emt 0:00:55]} 17. e4 {[%emt 0:02:32]} dxe4 {[%emt 0:00:25]} 18. Bxe4 {
[%emt 0:00:02]} Ra6 {[%emt 0:00:08]} 19. Re1 {[%emt 0:00:16]} Nf6 {[%emt 0:00:
07]} 20. Bf3 {[%emt 0:00:29]} N8h7 {[%emt 0:00:54]} 21. h4 {[%emt 0:00:54]} Bd7
{[%emt 0:00:14]} 22. Nxh7 {[%emt 0:02:16]} Rxh7 {[%emt 0:00:11]} 23. f5 {
[%emt 0:00:01]} gxf5 {[%emt 0:00:15]} 24. Bg5 {[%emt 0:00:01]} Bd8 {[%emt 0:00:
39]} 25. Qg2 {[%emt 0:00:37]} Rh8 {[%emt 0:01:25]} 26. Kb1 {[%emt 0:00:34]} b4
{[%emt 0:01:29]} 27. Ne2 {[%emt 0:00:02]} Qf8 {[%emt 0:00:48]} 28. Nf4 {
[%emt 0:00:28]} Be7 {[%emt 0:00:50]} 29. a4 {[%emt 0:01:13]} Kd8 {[%emt 0:00:
08]} 30. Nd3 {[%emt 0:00:06]} Nd5 {[%emt 0:00:33]} 31. Bxd5 {[%emt 0:00:38]}
cxd5 {[%emt 0:00:05]} 32. b3 {[%emt 0:00:03]} Bc6 {[%emt 0:00:56]} 33. Qg3 {
[%emt 0:00:27]} Kc8 {[%emt 0:00:13]} 34. Qe5 {[%emt 0:00:28]} Rg8 {[%emt 0:00:
31]} 35. Bxe7 {[%emt 0:00:09]} Qxe7 {[%emt 0:00:02]} 36. Qxf5 {[%emt 0:00:07]}
exf5 {[%emt 0:00:32]} 37. Rxe7 {[%emt 0:00:01]} Bd7 {[%emt 0:00:10]} 38. Ne5 {
[%emt 0:00:05]} Be6 {[%emt 0:00:03]} 39. Nxf7 {[%emt 0:00:27]} Bxf7 {[%emt 0:
00:02]} 40. Rxf7 {[%emt 0:00:01]} Re6 {[%emt 0:00:27]} 41. Rh2 {[%emt 0:01:46]}
Re3 {[%emt 0:00:06]} 42. Ka2 {[%emt 0:00:11]} Rgg3 {[%emt 0:00:07]} 43. Rb2 {
[%emt 0:00:01]} Re1 {[%emt 0:00:11]} 44. Rxf5 {[%emt 0:00:10]} Rgg1 {[%emt 0:
00:05]} 45. Rbf2 {[%emt 0:00:01]} Ra1+ {[%emt 0:00:03]} 46. Kb2 {[%emt 0:00:01]
} Rgc1 {[%emt 0:00:27]} 47. Rf8+ {[%emt 0:00:08]} Kd7 {[%emt 0:00:10]} 48. c6+
{[%emt 0:00:04]} Ke7 {[%emt 0:00:03]} 49. R8f7+ {[%emt 0:00:08]} Ke8 {[%emt 0:
00:06]} 50. Rf8+ {[%emt 0:00:12]} Ke7 {[%emt 0:00:01]} 51. R2f7+ {[%emt 0:00:
00]} Ke6 {[%emt 0:00:06]} 52. Rf6+ {[%emt 0:00:08]} Ke7 {[%emt 0:00:01]} 53.
R6f7+ {[%emt 0:00:00]} Ke6 {[%emt 0:00:01]} 54. Rf6+ {[%emt 0:00:01]} Ke7 {
[%emt 0:00:00]} 1/2-1/2

[Event "European Rapid Championship 2021"]
[Site "Katowice"]
[Date "2021.12.19"]
[Round "8.19"]
[White "Koziorowicz, Michal"]
[Black "Papasimakopoulos, Alexandros"]
[Result "1/2-1/2"]
[ECO "C03"]
[WhiteElo "2041"]
[BlackElo "2274"]
[Annotator "ChessBase"]
[PlyCount "166"]
[EventDate "2021.12.18"]
[EventType "swiss"]
[EventCountry "POL"]
[SourceTitle "playchess.com"]
[Source "ChessBase"]
[SourceQuality "1"]
[TimeControl "900+10"]

1. e4 {[%emt 0:00:01]} e6 {[%emt 0:00:01]} 2. d4 {[%emt 0:00:03]} d5 {[%emt 0:
00:02]} 3. Nd2 {[%emt 0:00:01]} Be7 {[%emt 0:00:04]} 4. Bd3 {[%emt 0:00:03]} c5
{[%emt 0:00:02]} 5. dxc5 {[%emt 0:00:09]} Bxc5 {[%emt 0:00:02]} 6. Ngf3 {
[%emt 0:00:03]} Nc6 {[%emt 0:00:02]} 7. O-O {[%emt 0:00:05]} Nge7 {[%emt 0:01:
10]} 8. a3 {[%emt 0:01:01]} a5 {[%emt 0:00:04]} 9. b3 {[%emt 0:00:10]} O-O {
[%emt 0:00:07]} 10. Bb2 {[%emt 0:01:13]} Ng6 {[%emt 0:00:04]} 11. b4 {[%emt 0:
01:26]} Bd6 {[%emt 0:01:28]} 12. c4 {[%emt 0:01:32]} Nce5 {[%emt 0:00:20]} 13.
Be2 {[%emt 0:00:41]} dxc4 {[%emt 0:01:52]} 14. Nxe5 {[%emt 0:02:16]} Bxe5 {
[%emt 0:00:11]} 15. Bxe5 {[%emt 0:00:06]} Nxe5 {[%emt 0:00:01]} 16. Nxc4 {
[%emt 0:00:04]} Nxc4 {[%emt 0:00:05]} 17. Bxc4 {[%emt 0:00:02]} Qe7 {[%emt 0:
01:33]} 18. Qb3 {[%emt 0:00:21]} b6 {[%emt 0:00:11]} 19. bxa5 {[%emt 0:00:41]}
bxa5 {[%emt 0:00:03]} 20. Rab1 {[%emt 0:00:08]} Qh4 {[%emt 0:01:28]} 21. Be2 {
[%emt 0:01:26]} Ba6 {[%emt 0:00:05]} 22. Bxa6 {[%emt 0:00:05]} Rxa6 {[%emt 0:
00:01]} 23. Rfe1 {[%emt 0:00:02]} h6 {[%emt 0:00:34]} 24. Qb5 {[%emt 0:00:12]}
Raa8 {[%emt 0:00:03]} 25. Rb3 {[%emt 0:00:32]} Qf6 {[%emt 0:00:19]} 26. Rf3 {
[%emt 0:00:22]} Qd4 {[%emt 0:00:08]} 27. Rd3 {[%emt 0:00:05]} Qf6 {[%emt 0:00:
23]} 28. Qh5 {[%emt 0:00:25]} a4 {[%emt 0:02:09]} 29. Rg3 {[%emt 0:00:18]} Rac8
{[%emt 0:00:54]} 30. h3 {[%emt 0:01:40]} Rc2 {[%emt 0:00:20]} 31. Re2 {[%emt 0:
00:02]} Qa1+ {[%emt 0:00:30]} 32. Kh2 {[%emt 0:00:02]} Rc1 {[%emt 0:00:01]} 33.
Rd3 {[%emt 0:00:58]} Rh1+ {[%emt 0:01:09]} 34. Kg3 {[%emt 0:00:01]} Qg1 {
[%emt 0:00:03]} 35. Rd7 {[%emt 0:00:45]} e5 {[%emt 0:00:20]} 36. Kf3 {[%emt 0:
00:45]} Rh2 {[%emt 0:01:33]} 37. Qg4 {[%emt 0:00:08]} Qc1 {[%emt 0:00:06]} 38.
Re3 {[%emt 0:00:31]} Rh1 {[%emt 0:00:40]} 39. Red3 {[%emt 0:00:08]} Qc6 {
[%emt 0:01:59]} 40. Qf5 {[%emt 0:00:35]} Rf1 {[%emt 0:01:02]} 41. Rxf7 {
[%emt 0:00:46]} Qc5 {[%emt 0:00:29]} 42. Rxf8+ {[%emt 0:00:07]} Qxf8 {[%emt 0:
00:01]} 43. Qxf8+ {[%emt 0:00:01]} Kxf8 {[%emt 0:00:01]} 44. Rd8+ {[%emt 0:00:
01]} Ke7 {[%emt 0:00:02]} 45. Ra8 {[%emt 0:00:00]} Kf6 {[%emt 0:00:02]} 46.
Rxa4 {[%emt 0:00:21]} Ra1 {[%emt 0:00:03]} 47. Ra6+ {[%emt 0:00:08]} Kf7 {
[%emt 0:00:01]} 48. Kg4 {[%emt 0:00:38]} Ra2 {[%emt 0:00:01]} 49. Kg3 {[%emt 0:
00:09]} h5 {[%emt 0:00:05]} 50. Kf3 {[%emt 0:00:11]} g5 {[%emt 0:00:09]} 51. g3
{[%emt 0:00:15]} Rb2 {[%emt 0:00:07]} 52. Kg2 {[%emt 0:00:31]} Re2 {[%emt 0:00:
16]} 53. Kf3 {[%emt 0:00:43]} Rb2 {[%emt 0:00:02]} 54. a4 {[%emt 0:00:14]} Rb3+
{[%emt 0:00:01]} 55. Kg2 {[%emt 0:00:21]} Rb4 {[%emt 0:00:02]} 56. f3 {[%emt 0:
00:01]} Rb2+ {[%emt 0:00:04]} 57. Kf1 {[%emt 0:00:02]} Rb3 {[%emt 0:00:17]} 58.
Ke2 {[%emt 0:00:02]} Rb2+ {[%emt 0:00:00]} 59. Kd3 {[%emt 0:00:11]} Rb3+ {
[%emt 0:00:01]} 60. Kc4 {[%emt 0:00:01]} Rxf3 {[%emt 0:00:02]} 61. Rh6 {
[%emt 0:00:05]} Rxg3 {[%emt 0:00:55]} 62. Rxh5 {[%emt 0:00:23]} Kg6 {[%emt 0:
00:01]} 63. Rh8 {[%emt 0:00:01]} Kg7 {[%emt 0:00:01]} 64. Re8 {[%emt 0:00:04]}
Kf6 {[%emt 0:00:27]} 65. a5 {[%emt 0:00:36]} Rxh3 {[%emt 0:00:11]} 66. a6 {
[%emt 0:00:01]} Ra3 {[%emt 0:00:06]} 67. Kb5 {[%emt 0:00:02]} g4 {[%emt 0:00:
24]} 68. Rg8 {[%emt 0:00:27]} g3 {[%emt 0:00:02]} 69. Kb6 Rb3+ {[%emt 0:00:01]}
70. Kc6 {[%emt 0:00:22]} Ra3 {[%emt 0:00:01]} 71. Kb7 {[%emt 0:00:03]} Rb3+ {
[%emt 0:00:01]} 72. Ka8 {[%emt 0:00:01]} Re3 {[%emt 0:00:22]} 73. a7 {[%emt 0:
00:24]} Rxe4 {[%emt 0:00:02]} 74. Kb7 {[%emt 0:00:01]} Ra4 {[%emt 0:00:17]} 75.
Rxg3 {[%emt 0:00:19]} e4 {[%emt 0:00:17]} 76. Rb3 {[%emt 0:00:17]} Ke5 {
[%emt 0:00:19]} 77. Rb6 {[%emt 0:00:21]} Rxa7+ {[%emt 0:00:14]} 78. Kxa7 {
[%emt 0:00:02]} e3 {[%emt 0:00:26]} 79. Rb8 {[%emt 0:00:01]} Kd4 {[%emt 0:00:
01]} 80. Kb6 {[%emt 0:00:02]} e2 {[%emt 0:00:03]} 81. Re8 {[%emt 0:00:01]} Kd3
{[%emt 0:00:00]} 82. Kc5 {[%emt 0:00:01]} Kd2 {[%emt 0:00:01]} 83. Rxe2+ {
[%emt 0:00:01]} Kxe2 {[%emt 0:00:02]} 1/2-1/2